bitfinex-derivatives/quotes_BTCF0:USTF0_20250704
["timestamp","ask_amount","ask_price","bid_price","bid_amount"]
[1751624480964,3.20998443,109000.0,108990.0,0.01658208]
[1751624485970,1.80121691,109000.0,108990.0,0.06658208]
[1751624486269,1.80121691,109000.0,108990.0,0.16218208]
[1751624486270,2.81227974,109000.0,108990.0,0.16218208]
[1751624487167,2.81227974,109000.0,108990.0,0.09843495]
[1751624487365,3.06200726,109000.0,108990.0,0.09843495]
[1751624487571,3.06200726,109000.0,108990.0,0.11208732]
[1751624488070,3.06216726,109000.0,108990.0,0.11208732]
[1751624489873,3.06216726,109000.0,108990.0,0.12638056]
[1751624491672,3.06216726,109000.0,108990.0,0.12636942]
[1751624494968,3.06216726,109000.0,108990.0,0.1263803]
[1751624497782,3.06216726,109000.0,108990.0,0.12637929]
[1751624498985,3.12596726,109000.0,108990.0,0.12637929]
[1751624501582,3.12596726,109000.0,108990.0,0.09537929]
[1751624505491,3.15666726,109000.0,108990.0,0.09537929]
[1751624505990,3.15666726,109000.0,108990.0,0.09543755]
[1751624506495,3.15666726,109000.0,108990.0,0.06363755]
[1751624506695,3.15666726,109000.0,108990.0,0.04993446]
[1751624507494,3.15666726,109000.0,108990.0,0.03563495]
[1751624509092,3.15666726,109000.0,108990.0,0.06355752]
[1751624511691,3.15666726,109000.0,108990.0,0.06356302]
[1751624514700,2.09070726,109000.0,108990.0,0.03076302]
[1751624514904,3.15498726,109000.0,108990.0,0.03076302]
[1751624515802,3.15498726,109000.0,108990.0,0.03077048]
[1751624517202,3.15498726,109000.0,108990.0,0.04077048]
[1751624517403,3.15498726,109000.0,108990.0,0.00283495]
[1751624517608,3.15498726,109000.0,108990.0,0.03076927]
[1751624519309,3.20972443,109000.0,108990.0,0.03076927]
[1751624519712,3.15498726,109000.0,108990.0,0.03076927]
[1751624520208,3.20972443,109000.0,108990.0,0.03076927]
[1751624521712,3.20972443,109000.0,108990.0,0.05829541]
[1751624524110,3.20972443,109000.0,108990.0,0.05829577]
[1751624525808,3.20972443,109000.0,108990.0,0.03076963]
[1751624527110,3.20972443,109000.0,108990.0,0.01707501]
[1751624533120,3.20972443,109000.0,108990.0,0.01709665]
[1751624539426,3.20972443,109000.0,108990.0,0.04462279]
[1751624539624,3.20972443,109000.0,108990.0,0.01709665]
[1751624547233,2.48812443,109000.0,108990.0,0.01709665]
[1751624547432,3.20972443,109000.0,108990.0,0.01709665]
[1751624553341,2.46150187,109000.0,108990.0,0.04462279]
[1751624553640,3.21068443,109000.0,108990.0,0.07552279]
[1751624553839,3.21068443,109000.0,108990.0,0.06126109]
[1751624554441,3.21068443,109000.0,108990.0,0.12126109]
[1751624554633,1.80121691,109000.0,108990.0,0.12126109]
[1751624554836,2.81195974,109000.0,108990.0,0.29126109]
[1751624555034,2.81195974,109000.0,108990.0,0.40636163]
[1751624555239,2.81195974,109000.0,108990.0,0.39212409]
[1751624557043,2.57995974,109000.0,108990.0,0.60518861]
[1751624557239,2.57995974,109000.0,108990.0,0.35546109]
[1751624558343,2.57995974,109000.0,108990.0,0.35544492]
[1751624559547,1.74647974,109000.0,108990.0,0.35544492]
[1751624559844,2.57975974,109000.0,108990.0,0.35544492]
[1751624576651,2.61035974,109000.0,108990.0,0.35544492]
[1751624576851,2.61035974,109000.0,108990.0,0.32793495]
[1751624576852,2.64115974,109000.0,108990.0,0.32793495]
[1751624578255,2.64115974,109000.0,108990.0,0.29513495]
[1751624580258,2.67175974,109000.0,108990.0,0.29513495]
[1751624581456,2.67175974,109000.0,108990.0,0.32264492]
[1751624582560,2.67175974,109000.0,108990.0,0.29124492]
[1751624584262,1.95015974,109000.0,108990.0,0.29124492]
[1751624584649,2.67175974,109000.0,108990.0,0.29124492]
[1751624585362,2.67175974,109000.0,108990.0,0.26034492]
[1751624586763,2.67175974,109000.0,108990.0,0.29700792]
[1751624589163,2.67095974,109000.0,108990.0,0.29700792]
[1751624590868,2.1715047,109000.0,108990.0,0.29700792]
[1751624591063,2.67095974,109000.0,108990.0,0.29700792]
[1751624591269,2.67095974,109000.0,108990.0,0.29703123]
[1751624591768,1.83847974,109000.0,108990.0,0.29703123]
[1751624591969,2.67155974,109000.0,108990.0,0.26949795]
[1751624599372,1.94995974,109000.0,108990.0,0.26949795]
[1751624599572,2.31075974,109000.0,108990.0,0.26949795]
[1751624601873,2.31075974,109000.0,108990.0,0.51922547]
[1751624602068,2.31075974,109000.0,108990.0,0.57422619]
[1751624602269,2.31075974,109000.0,108990.0,0.60682619]
[1751624602568,2.31075974,109000.0,108990.0,0.35709867]
[1751624602769,2.31075974,109000.0,108990.0,0.60682619]
[1751624603470,1.22795222,109000.0,108990.0,0.60682619]
[1751624603769,0.3154245,109000.0,108990.0,1.42168046]
[1751624603978,1.1479445,109000.0,108990.0,1.48418046]
[1751624604275,1.1479445,109000.0,108990.0,1.66767646]
[1751624604473,0.3154245,109000.0,108990.0,1.66767646]
[1751624604678,0.3154245,109000.0,108990.0,1.59432739]
[1751624605375,0.3154245,109000.0,108990.0,1.64931961]
[1751624605575,0.3154245,109000.0,108990.0,1.39959209]
[1751624609682,0.3154245,109000.0,108990.0,1.21609609]
[1751624613478,0.132,109000.0,108990.0,1.21609609]
[1751624614885,0.3154246,109000.0,108990.0,1.21609609]
[1751624617688,0.132,109000.0,108990.0,1.21609609]
[1751624617888,0.3154245,109000.0,108990.0,1.21609609]
[1751624618090,0.132,109000.0,108990.0,1.21609609]
[1751624620603,0.3154246,109000.0,108990.0,1.21609609]
[1751624623403,0.132,109000.0,108990.0,1.21609609]
[1751624626607,0.132,109000.0,108990.0,1.46582361]
[1751624626802,0.132,109000.0,108990.0,1.41083139]
[1751624628104,0.132,109000.0,108990.0,1.48418046]
[1751624630308,0.132,109000.0,108990.0,1.84498046]
[1751624633512,0.132,109000.0,108990.0,1.59525294]
[1751624634713,0.3154246,109000.0,108990.0,1.59525294]
[1751624635409,0.3154246,109000.0,108990.0,0.98552542]
[1751624635608,0.3154246,109000.0,108990.0,1.25525294]
[1751624635809,0.3787246,109000.0,108990.0,1.25525294]
[1751624641221,0.1953,109000.0,108990.0,1.25525294]
[1751624642822,0.3787246,109000.0,108990.0,1.25525294]
[1751624643420,0.3787246,109000.0,108990.0,1.58525294]
[1751624644222,0.3787246,109000.0,108990.0,1.83498046]
[1751624645223,0.3787246,109000.0,108990.0,1.76163139]
[1751624645725,0.3787246,109000.0,108990.0,1.83500662]
[1751624647124,0.3787246,109000.0,108990.0,1.76163139]
[1751624648023,0.3787246,109000.0,108990.0,1.51190387]
[1751624648728,0.3787246,109000.0,108990.0,1.76163139]
[1751624649027,0.3787246,109000.0,108990.0,1.50190387]
[1751624650126,0.3787246,109000.0,108990.0,1.52122435]
[1751624650328,0.3787246,109000.0,108990.0,1.59460583]
[1751624650527,0.3787246,109000.0,108990.0,1.23380583]
[1751624650828,0.3787246,109000.0,108990.0,1.59460583]
[1751624652423,0.3787246,109000.0,108990.0,1.23380583]
[1751624652628,0.3787246,109000.0,108990.0,1.59460583]
[1751624653331,0.3787246,109000.0,108990.0,1.52122435]
[1751624654330,0.3787246,109000.0,108990.0,1.5208698]
[1751624654527,0.2487246,109000.0,108990.0,1.5208698]
[1751624657734,0.2487246,109000.0,108990.0,1.52120041]
[1751624659230,0.2487246,109000.0,108990.0,1.61240721]
[1751624661732,0.2487246,109000.0,108990.0,1.27240721]
[1751624661930,0.2487246,109000.0,108990.0,1.63240721]
[1751624665641,0.2487246,109000.0,108990.0,1.88213473]
[1751624666342,0.2487246,109000.0,108990.0,1.95554147]
[1751624666543,0.2487246,109000.0,108990.0,1.86433467]
[1751624671543,0.2487246,109000.0,108990.0,1.52433467]
[1751624671743,0.2487246,109000.0,108990.0,1.84433467]
[1751624672043,0.2487246,109000.0,108990.0,1.52433467]
[1751624672345,0.2487246,109000.0,108990.0,1.85433467]
[1751624674744,0.2487246,109000.0,108990.0,1.60460715]
[1751624677143,0.2487246,109000.0,108990.0,1.53120041]
[1751624677545,0.2487246,109000.0,108990.0,1.52120041]
[1751624678545,0.2487246,109000.0,108990.0,1.20120041]
[1751624678745,0.2487246,109000.0,108990.0,1.49120041]
[1751624679045,0.2487246,109000.0,108990.0,1.54120041]
[1751624679647,0.2487246,109000.0,108990.0,1.63240721]
[1751624683355,0.2487246,109000.0,108990.0,1.54120041]
[1751624684955,0.2487246,109000.0,108990.0,1.18120041]
[1751624685150,0.2487246,109000.0,108990.0,1.20120041]
[1751624685448,0.2487246,109000.0,108990.0,1.49120041]
[1751624686849,0.2487246,109000.0,108990.0,1.18120041]
[1751624687153,0.2487246,109000.0,108990.0,1.49120041]
[1751624691162,0.2487246,109000.0,108990.0,1.13040041]
[1751624691362,0.2487246,109000.0,108990.0,1.49120041]
[1751624696166,0.2487246,109000.0,108990.0,0.98147289]
[1751624696365,0.2487246,109000.0,108990.0,1.51120041]
[1751624696560,0.2487246,109000.0,108990.0,1.15040041]
[1751624696766,0.2487246,109000.0,108990.0,1.51120041]
[1751624697369,0.85925212,109000.0,108990.0,0.80870566]
[1751624697664,0.89105212,109000.0,108990.0,0.80870566]
[1751624698167,0.88905212,109000.0,108990.0,0.80870566]
[1751624698363,0.89005212,109000.0,108990.0,0.80770566]
[1751624706571,0.6403246,109000.0,108990.0,0.80770566]
[1751624708373,0.6403246,109000.0,108990.0,0.83780566]
[1751624710876,0.2795246,109000.0,108990.0,0.83780566]
[1751624711070,0.6403246,109000.0,108990.0,0.83780566]
[1751624715484,0.2795246,109000.0,108990.0,0.83780566]
[1751624715684,0.6403246,109000.0,108990.0,0.83780566]
[1751624718291,0.2795246,109000.0,108990.0,0.83780566]
[1751624718593,0.6403246,109000.0,108990.0,0.83780566]
[1751624726396,0.2795246,109000.0,108990.0,0.83780566]
[1751624726594,0.6403246,109000.0,108990.0,0.86840566]
[1751624737704,0.89005212,109000.0,108990.0,0.86840566]
[1751624744815,0.6403246,109000.0,108990.0,0.86840566]
[1751624748913,0.6085246,109000.0,108990.0,0.86840566]
[1751624750212,0.6085246,109000.0,108990.0,1.20840566]
[1751624751616,1.4393246,109000.0,108990.0,1.20840566]
[1751624751914,1.4393246,109000.0,108990.0,1.23870566]
[1751624753414,1.0785246,109000.0,108990.0,1.23870566]
[1751624753718,1.4393246,109000.0,108990.0,1.23870566]
[1751624754921,1.0785246,109000.0,108990.0,1.23870566]
[1751624755218,1.4393246,109000.0,108990.0,1.23870566]
[1751624756218,1.4393246,109000.0,108990.0,1.26870566]
[1751624760420,1.4393246,109000.0,108990.0,1.51843318]
[1751624764929,1.4393246,109000.0,108990.0,1.26870566]
[1751624765127,1.4393246,109000.0,108990.0,1.51843318]
[1751624766128,0.5765246,109000.0,108990.0,1.51843318]
[1751624766427,1.0464446,109000.0,108990.0,1.51843318]
[1751624772230,1.0151446,109000.0,108990.0,1.51843318]
[1751624780138,1.0151446,109000.0,108990.0,1.49913664]
[1751624783234,1.0794446,109000.0,108990.0,1.49913664]
[1751624788842,1.0794446,109000.0,108990.0,1.51638785]
[1751624789236,1.0794446,109000.0,108990.0,1.16638785]
[1751624789439,1.0794446,109000.0,108990.0,1.46638785]
[1751624792146,1.0794446,109000.0,108990.0,1.16638785]
[1751624792343,1.0794446,109000.0,108990.0,1.50638785]
[1751624793346,1.0794446,109000.0,108990.0,1.50652241]
[1751624796042,1.0794446,109000.0,108990.0,1.14652241]
[1751624796348,1.0794446,109000.0,108990.0,1.49622241]
[1751624796546,1.0794446,109000.0,108990.0,1.11622241]
[1751624796746,1.0794446,109000.0,108990.0,1.47622241]
[1751624797247,1.0794446,109000.0,108990.0,1.40281716]
[1751624798448,1.0794446,109000.0,108990.0,1.06281716]
[1751624798649,1.0794446,109000.0,108990.0,1.38281716]
[1751624799348,1.0794446,109000.0,108990.0,1.45622241]
[1751624809558,1.0794446,109000.0,108990.0,0.63676737]
[1751624809759,1.0794446,109000.0,108990.0,1.47622241]
[1751624813552,1.0794446,109000.0,108990.0,1.11622241]
[1751624813752,1.0794446,109000.0,108990.0,1.44622241]
[1751624813953,1.0794446,109000.0,108990.0,1.13622241]
[1751624814154,1.0794446,109000.0,108990.0,1.44622241]
[1751624814355,1.0794446,109000.0,108990.0,0.86649489]
[1751624814658,1.0794446,109000.0,108990.0,1.18649489]
[1751624815162,1.0794446,109000.0,108990.0,0.88649489]
[1751624815366,1.1103446,109000.0,108990.0,0.88649489]
[1751624822265,0.2796246,109000.0,108990.0,0.88649489]
[1751624822465,1.1099446,109000.0,108990.0,0.88649489]
[1751624823556,1.1099046,109000.0,108990.0,0.88649489]
[1751624824559,0.2796246,109000.0,108990.0,0.88649489]
[1751624824767,1.1099046,109000.0,108990.0,0.88649489]
[1751624826865,0.2796246,109000.0,108990.0,0.88649489]
[1751624827070,1.1099046,109000.0,108990.0,0.88649489]
[1751624828767,1.0790046,109000.0,108990.0,1.13622241]
[1751624829367,1.0790046,109000.0,108990.0,1.47622241]
[1751624829572,1.0790046,109000.0,108990.0,1.50622241]
[1751624841792,1.0790046,109000.0,108990.0,1.25649489]
[1751624843792,1.0790046,109000.0,108990.0,1.50622241]
[1751624845589,1.0790046,109000.0,108990.0,1.25649489]
[1751624846791,1.0790046,109000.0,108990.0,1.50622241]
[1751624849294,1.0790046,109000.0,108990.0,1.25649489]
[1751624855097,1.0790046,109000.0,108990.0,1.50622241]
[1751624863908,0.1844264,109000.0,108990.0,1.86702241]
[1751624864107,0.1844264,109000.0,108990.0,1.79361716]
[1751624865101,0.1844264,109000.0,108990.0,1.88582396]
[1751624865407,0.1844264,109000.0,108990.0,1.79461716]
[1751624865710,0.1844264,109000.0,108990.0,1.79361716]
[1751624865909,0.1844264,109000.0,108990.0,1.79461716]
[1751624866209,0.1834264,109000.0,108990.0,1.79461716]
[1751624866409,0.1844264,109000.0,108990.0,1.79461716]
[1751624866905,0.1844264,109000.0,108990.0,1.86800141]
[1751624872616,0.1844264,109000.0,108990.0,1.52800141]
[1751624872815,0.1844264,109000.0,108990.0,1.88800141]
[1751624875517,0.1844264,109000.0,108990.0,1.52800141]
[1751624875719,0.1844264,109000.0,108990.0,1.84800141]
[1751624878119,0.1844264,109000.0,108990.0,1.52800141]
[1751624878314,0.1844264,109000.0,108990.0,1.50800141]
[1751624878615,0.1844264,109000.0,108990.0,1.82800141]
[1751624880923,0.1844264,109000.0,108990.0,1.52800141]
[1751624881317,0.1844264,109000.0,108990.0,1.50800141]
[1751624881523,0.1844264,109000.0,108990.0,1.87800141]
[1751624883023,0.1844264,109000.0,108990.0,1.62827389]
[1751624883722,0.1844264,109000.0,108990.0,0.66774637]
[1751624883927,0.2145264,109000.0,108990.0,0.91747389]
[1751624886526,0.2457264,109000.0,108990.0,0.91747389]
[1751624888222,0.2457264,109000.0,108990.0,0.88747389]
[1751624908145,0.2457264,109000.0,108990.0,0.86747389]
[1751624908346,0.2457264,109000.0,108990.0,1.18747389]
[1751624909146,0.2145264,109000.0,108990.0,1.43720141]
[1751624909349,0.2145264,109000.0,108990.0,1.46780141]
[1751624911751,0.0311,109000.0,108990.0,1.82860141]
[1751624911947,0.2145265,109000.0,108990.0,1.75521716]
[1751624912153,0.2145265,109000.0,108990.0,1.84642396]
[1751624912755,0.001,109000.0,108990.0,1.84642396]
[1751624914155,0.001,109000.0,108990.0,1.75521716]
[1751624915157,0.001,109000.0,108990.0,1.73783139]
[1751624916464,0.001,109000.0,108990.0,1.8112173]
[1751624916962,0.0631,109010.0,109000.0,0.1834265]
[1751624917261,0.3844096,109010.0,109000.0,1.45026614]
[1751624917559,0.3844096,109010.0,109000.0,1.48236614]
[1751624918061,0.3844096,109010.0,109000.0,1.84316614]
[1751624918457,0.3854096,109010.0,109000.0,1.84316614]
[1751624918756,0.4170096,109010.0,109000.0,1.84316614]
[1751624920560,0.4170096,109010.0,109000.0,1.85748767]
[1751624921662,0.66673712,109010.0,109000.0,1.82538767]
[1751624921862,0.69683712,109010.0,109000.0,1.82538767]
[1751624924262,0.4471096,109010.0,109000.0,1.82538767]
[1751624924461,0.69683712,109010.0,109000.0,1.82538767]
[1751624925564,0.69683712,109010.0,109000.0,1.82536476]
[1751624929262,0.69683712,109010.0,109000.0,1.57563724]
[1751624929665,0.4471096,109010.0,109000.0,1.57563724]
[1751624929865,0.69683712,109010.0,109000.0,1.57563724]
[1751624931765,0.69683712,109010.0,109000.0,1.82538903]
[1751624932267,0.69683712,109010.0,109000.0,1.50227691]
[1751624933167,0.69683712,109010.0,109000.0,1.57566151]
[1751624934466,0.4471096,109010.0,109000.0,1.57566151]
[1751624934768,0.4471096,109010.0,109000.0,1.50227691]
[1751624934968,0.4471096,109010.0,109000.0,1.50227764]
[1751624935269,0.69683712,109010.0,109000.0,1.50227764]
[1751624936871,0.69683712,109010.0,109000.0,1.55727756]
[1751624941873,0.69683712,109010.0,109000.0,1.80700508]
[1751624942174,0.69683712,109010.0,109000.0,1.75200516]
[1751624944380,0.69683712,109010.0,109000.0,1.73768154]
[1751624944578,0.69683712,109010.0,109000.0,1.81106614]
[1751624946078,0.69683712,109010.0,109000.0,1.56133862]
[1751624947473,0.4471096,109010.0,109000.0,1.56133862]
[1751624947673,0.66673712,109010.0,109000.0,1.56133862]
[1751624947874,0.66673712,109010.0,109000.0,1.84126614]
[1751624951282,0.66673712,109010.0,109000.0,1.85560245]
[1751624952377,0.66673712,109010.0,109000.0,1.84126614]
[1751624958898,0.66673712,109010.0,109000.0,1.48046614]
[1751624959198,0.66673712,109010.0,109000.0,1.84126614]
[1751624961197,0.66673712,109010.0,109000.0,1.59153862]
[1751624964301,0.66673712,109010.0,109000.0,1.84126614]
[1751624965899,0.66673712,109010.0,109000.0,1.48046614]
[1751624966098,0.66673712,109010.0,109000.0,1.84126614]
[1751624970405,0.66673712,109010.0,109000.0,1.59153862]
[1751624972508,0.66673712,109010.0,109000.0,1.23073862]
[1751624972708,0.66673712,109010.0,109000.0,1.59153862]
[1751624972914,0.66673712,109010.0,109000.0,1.23073862]
[1751624973205,0.66673712,109010.0,109000.0,1.59153862]
[1751624973507,0.66673712,109010.0,109000.0,1.23073862]
[1751624973708,0.66673712,109010.0,109000.0,1.59153862]
[1751624981410,0.66673712,109010.0,109000.0,1.23073862]
[1751624981614,0.66673712,109010.0,109000.0,1.59153862]
[1751624983519,0.66673712,109010.0,109000.0,1.23073862]
[1751624983715,0.66673712,109010.0,109000.0,1.59153862]
[1751624985318,0.66673712,109010.0,109000.0,1.23073862]
[1751624985519,0.66673712,109010.0,109000.0,1.59153862]
[1751624985912,0.66673712,109010.0,109000.0,1.23073862]
[1751624986120,0.66673712,109010.0,109000.0,1.59153862]
[1751624986519,0.66673712,109010.0,109000.0,1.3418111]
[1751624986719,0.66673712,109010.0,109000.0,1.59153862]
[1751624989813,0.66673712,109010.0,109000.0,1.23073862]
[1751624990019,0.66673712,109010.0,109000.0,1.59153862]
[1751624991521,0.66673712,109010.0,109000.0,1.23073862]
[1751624991719,0.66673712,109010.0,109000.0,1.59153862]
[1751624994224,0.66673712,109010.0,109000.0,1.23073862]
[1751624994420,0.66673712,109010.0,109000.0,1.59153862]
[1751624995426,0.66673712,109010.0,109000.0,1.23073862]
[1751624995624,0.66673712,109010.0,109000.0,1.59153862]
[1751624998626,0.66673712,109010.0,109000.0,1.57320535]
[1751624999430,0.66673712,109010.0,109000.0,1.21240535]
[1751624999623,0.66673712,109010.0,109000.0,1.57320535]
[1751625004836,0.66673712,109010.0,109000.0,1.21240535]
[1751625005033,0.66673712,109010.0,109000.0,1.57320535]
[1751625006437,0.66673712,109010.0,109000.0,1.21240535]
[1751625006634,0.66673712,109010.0,109000.0,1.57320535]
[1751625008540,0.66673712,109010.0,109000.0,1.51815402]
[1751625008731,0.66673712,109010.0,109000.0,1.59153862]
[1751625012547,0.66673712,109010.0,109000.0,1.51815402]
[1751625012844,0.66673712,109010.0,109000.0,1.15735402]
[1751625013050,0.66673712,109010.0,109000.0,1.51815402]
[1751625014651,0.66673712,109010.0,109000.0,1.2684265]
[1751625014857,0.66673712,109010.0,109000.0,1.51815402]
[1751625018854,0.66673712,109010.0,109000.0,1.15735402]
[1751625019055,0.66673712,109010.0,109000.0,1.51815402]
[1751625019854,0.66673712,109010.0,109000.0,1.15735402]
[1751625020156,0.66673712,109010.0,109000.0,1.51815402]
[1751625021959,0.66673712,109010.0,109000.0,1.59153862]
[1751625023459,0.66673712,109010.0,109000.0,1.51815402]
[1751625024358,0.4170096,109010.0,109000.0,1.51815402]
[1751625024560,0.66673712,109010.0,109000.0,1.51815402]
[1751625026449,0.171,109010.0,109000.0,1.76788154]
[1751625026654,0.34983939,109020.0,109010.0,0.1834077]
[1751625026961,1.17967939,109020.0,109010.0,1.54683522]
[1751625027163,1.17967939,109020.0,109010.0,1.6018523]
[1751625027463,0.34983939,109020.0,109010.0,1.6018523]
[1751625027664,1.08796779,109020.0,109010.0,1.88157982]
[1751625027960,0.25912779,109020.0,109010.0,1.88157982]
[1751625028158,0.25912779,109020.0,109010.0,1.6318523]
[1751625028361,0.25912779,109020.0,109010.0,1.57683522]
[1751625028862,0.26112779,109020.0,109010.0,1.57783522]
[1751625029260,0.26112779,109020.0,109010.0,1.19783522]
[1751625029466,0.26112779,109020.0,109010.0,1.30783522]
[1751625029765,0.25912779,109020.0,109010.0,1.30683522]
[1751625029963,0.26012779,109020.0,109010.0,1.30883522]
[1751625030465,0.26012779,109020.0,109010.0,1.31815587]
[1751625030868,0.25912779,109020.0,109010.0,1.31815587]
[1751625031566,0.25912779,109020.0,109010.0,1.54815587]
[1751625032168,0.25912779,109020.0,109010.0,1.60312719]
[1751625041174,0.25912779,109020.0,109010.0,1.24232719]
[1751625041374,0.25912779,109020.0,109010.0,1.60312719]
[1751625041874,0.25912779,109020.0,109010.0,1.54815587]
[1751625042374,0.25912779,109020.0,109010.0,1.60311433]
[1751625044268,0.25912779,109020.0,109010.0,1.54815587]
[1751625050979,0.1843909,109020.0,109010.0,1.54815587]
[1751625051279,0.1843909,109020.0,109010.0,1.62154047]
[1751625056469,0.001,109020.0,109010.0,1.62154047]
[1751625058683,0.1843909,109020.0,109010.0,1.62154047]
[1751625061085,0.001,109020.0,109010.0,1.62154047]
[1751625065585,0.1843909,109020.0,109010.0,1.62154047]
[1751625066583,0.43411842,109020.0,109010.0,1.37181295]
[1751625066783,0.49581842,109020.0,109010.0,1.62154047]
[1751625068789,0.2460909,109020.0,109010.0,1.62154047]
[1751625069291,0.49581842,109020.0,109010.0,1.62154047]
[1751625075796,0.2460909,109020.0,109010.0,1.62154047]
[1751625077297,0.49581842,109020.0,109010.0,1.62154047]
[1751625079502,0.2460909,109020.0,109010.0,1.62154047]
[1751625087004,0.2460909,109020.0,109010.0,1.54815587]
[1751625093508,0.2460909,109020.0,109010.0,1.62154458]
[1751625093914,0.2460909,109020.0,109010.0,1.54815587]
[1751625098116,0.2460909,109020.0,109010.0,1.18735587]
[1751625098316,0.2460909,109020.0,109010.0,1.54815587]
[1751625098517,0.2460909,109020.0,109010.0,1.62154457]
[1751625099316,0.2460909,109020.0,109010.0,1.26074457]
[1751625099518,0.2460909,109020.0,109010.0,1.62154457]
[1751625101216,0.2460909,109020.0,109010.0,1.26074457]
[1751625101414,0.2460909,109020.0,109010.0,1.62154457]
[1751625102716,0.2460909,109020.0,109010.0,1.37181705]
[1751625102923,0.85661842,109020.0,109010.0,0.6292964]
[1751625103121,0.49581842,109020.0,109010.0,0.81852392]
[1751625103415,0.52701842,109020.0,109010.0,0.81852392]
[1751625104022,0.52701842,109020.0,109010.0,0.82789842]
[1751625106222,0.52701842,109020.0,109010.0,0.81852392]
[1751625108624,1.35641842,109020.0,109010.0,0.81852392]
[1751625109027,0.52701842,109020.0,109010.0,0.81852392]
[1751625109224,1.35641842,109020.0,109010.0,0.81852392]
[1751625109418,1.60614594,109020.0,109010.0,0.3853887]
[1751625109619,2.29146461,109020.0,109010.0,0.002]
[1751625109820,2.65146461,109020.0,109010.0,0.30869071]
[1751625110022,2.65146461,109020.0,109010.0,0.03869071]
[1751625110320,0.1834077,109010.0,109000.0,0.06503607]
[1751625110520,1.43746274,109010.0,109000.0,0.34503607]
[1751625110825,1.43746274,109010.0,109000.0,0.29]
[1751625111024,1.43746274,109010.0,109000.0,0.31749588]
[1751625111633,1.18773522,109010.0,109000.0,0.31749588]
[1751625111928,1.1970269,109010.0,109000.0,0.31749588]
[1751625112129,1.1970269,109010.0,109000.0,0.31849588]
[1751625112631,1.1970269,109010.0,109000.0,0.31949588]
[1751625112928,1.1990269,109010.0,109000.0,0.31949588]
[1751625113329,1.1990269,109010.0,109000.0,0.50292048]
[1751625116029,1.44875442,109010.0,109000.0,0.31949588]
[1751625116325,1.63223442,109010.0,109000.0,0.19618659]
[1751625116630,1.63223442,109010.0,109000.0,0.002]
[1751625119029,0.1834246,109000.0,108990.0,0.00183495]
[1751625119335,2.95872716,109000.0,108990.0,0.00183495]
[1751625119628,3.14222316,109000.0,108990.0,0.00183495]
[1751625120232,3.14322316,109000.0,108990.0,0.00183495]
[1751625121537,3.12553564,109000.0,108990.0,0.08183495]
[1751625121731,2.87620705,109000.0,108990.0,0.08183495]
[1751625121934,2.87620705,109000.0,108990.0,0.00183495]
[1751625122528,2.87620705,109000.0,108990.0,0.12183495]
[1751625123034,2.87632705,109000.0,108990.0,0.12183495]
[1751625126738,2.69283105,109000.0,108990.0,0.12183495]
[1751625129438,2.46151105,109000.0,108990.0,0.12183495]
[1751625129640,2.2119046,109000.0,108990.0,0.29183495]
[1751625129845,2.46203105,109000.0,108990.0,0.29183495]
[1751625130936,1.3810246,109000.0,108990.0,0.25527625]
[1751625131142,1.3175246,109000.0,108990.0,0.7254027]
[1751625131341,2.1484846,109000.0,108990.0,0.7879027]
[1751625131542,2.39861105,109000.0,108990.0,0.35433495]
[1751625132344,2.02861105,109000.0,108990.0,0.53777625]
[1751625132549,2.38861105,109000.0,108990.0,0.53777625]
[1751625134446,2.02781105,109000.0,108990.0,0.53777625]
[1751625137149,2.02781105,109000.0,108990.0,0.56807625]
[1751625138050,2.02781105,109000.0,108990.0,0.38463495]
[1751625139748,2.02781105,109000.0,108990.0,0.56807635]
[1751625140252,2.02781105,109000.0,108990.0,0.38463495]
[1751625140449,2.02781105,109000.0,108990.0,0.56807635]
[1751625142950,1.65781105,109000.0,108990.0,0.56807635]
[1751625143155,1.7161846,109000.0,108990.0,0.56807635]
[1751625143557,0.5552246,109000.0,108990.0,0.56807635]
[1751625143758,1.3862646,109000.0,108990.0,0.56807635]
[1751625143960,0.5552246,109000.0,108990.0,0.8182028]
[1751625144256,1.3864246,109000.0,108990.0,0.85482856]
[1751625144458,1.7364246,109000.0,108990.0,0.85482856]
[1751625144954,1.3764246,109000.0,108990.0,0.85482856]
[1751625145159,1.4664246,109000.0,108990.0,0.85482856]
[1751625145363,1.7364246,109000.0,108990.0,0.65973818]
[1751625145857,1.7364246,109000.0,108990.0,0.60470211]
[1751625147664,1.4864246,109000.0,108990.0,0.56807635]
[1751625155661,2.01865105,109000.0,108990.0,0.56807635]
[1751625156365,2.01865105,109000.0,108990.0,0.14433495]
[1751625156554,2.04995105,109000.0,108990.0,0.52767635]
[1751625157266,2.04995105,109000.0,108990.0,0.34423495]
[1751625157464,2.04995105,109000.0,108990.0,0.38086071]
[1751625157663,2.04995105,109000.0,108990.0,0.08086071]
[1751625157865,2.04995105,109000.0,108990.0,0.38086071]
[1751625158064,2.04995105,109000.0,108990.0,0.56430211]
[1751625159561,0.9686246,109000.0,108990.0,0.56430211]
[1751625159768,1.7999446,109000.0,108990.0,0.56430211]
[1751625162672,2.05007105,109000.0,108990.0,0.56430211]
[1751625163773,1.7999446,109000.0,108990.0,0.56430211]
[1751625165768,2.05000157,109000.0,108990.0,0.81435908]
[1751625166274,2.05000157,109000.0,108990.0,0.86939515]
[1751625167074,2.05000157,109000.0,108990.0,0.84186841]
[1751625170573,1.7999446,109000.0,108990.0,0.84186841]
[1751625170772,2.05000157,109000.0,108990.0,0.84186841]
[1751625172274,2.05000157,109000.0,108990.0,0.81435908]
[1751625177174,2.05000157,109000.0,108990.0,0.83276939]
[1751625178779,2.05000157,109000.0,108990.0,0.58271242]
[1751625178979,2.05000157,109000.0,108990.0,0.83276939]
[1751625179580,2.30005854,109000.0,108990.0,0.83276939]
[1751625180580,2.05000157,109000.0,108990.0,0.83276939]
[1751625180976,2.30005854,109000.0,108990.0,0.83276939]
[1751625182480,2.05000157,109000.0,108990.0,0.83276939]
[1751625185284,2.05000157,109000.0,108990.0,0.86947657]
[1751625187083,2.05000157,109000.0,108990.0,0.83276939]
[1751625187683,2.05000157,109000.0,108990.0,0.86947711]
[1751625188883,2.05000157,109000.0,108990.0,0.83276939]
[1751625191484,2.30005854,109000.0,108990.0,0.83276939]
[1751625191784,2.05000157,109000.0,108990.0,0.83276939]
[1751625195485,1.68920157,109000.0,108990.0,0.83276939]
[1751625195686,2.05000157,109000.0,108990.0,0.83276939]
[1751625196788,1.7999446,109000.0,108990.0,0.83276939]
[1751625197085,2.05000157,109000.0,108990.0,0.83276939]
[1751625199388,1.68920157,109000.0,108990.0,0.83276939]
[1751625199588,2.05000157,109000.0,108990.0,0.83276939]
[1751625200286,1.21868157,109000.0,108990.0,0.83276939]
[1751625200487,2.04884157,109000.0,108990.0,0.83276939]
[1751625205389,1.68804157,109000.0,108990.0,0.83276939]
[1751625205589,2.04884157,109000.0,108990.0,0.83276939]
[1751625207287,1.68804157,109000.0,108990.0,0.83276939]
[1751625207683,2.04884157,109000.0,108990.0,0.83276939]
[1751625208490,2.01764157,109000.0,108990.0,0.83276939]
[1751625208691,2.05024157,109000.0,108990.0,0.83276939]
[1751625211793,2.05024157,109000.0,108990.0,0.83276949]
[1751625211995,2.01764157,109000.0,108990.0,0.83276949]